Department,Entity, Transaction Date, Expense Type, Expense Area, Supplier Name,Transaction number, Amount, Invoice Description
DFID,CSC,05/11/2018,Engagement,Admin Costs,NatWest CC,NOM000792,1.59,
DFID,CSC,05/11/2018,Scholar Engagement,Programme Costs,NatWest CC,NOM000792,224.5,
DFID,CSC,05/11/2018,Scholar Engagement,Programme Costs,NatWest CC,NOM000792,119,
DFID,CSC,05/11/2018,Secretariat Travel,Programme Costs,NatWest CC,NOM000792,59.5,
DFID,CSC,05/11/2018,Scholar Engagement,Programme Costs,NatWest CC,NOM000792,34.19,
DFID,CSC,05/11/2018,Scholar Engagement,Programme Costs,NatWest CC,NOM000792,51.48,
DFID,CSC,05/11/2018,Alumni Engagement,Programme Costs,NatWest CC,NOM000792,36.99,
BEIS,CSC,05/11/2018,Scholar Engagement,Award Costs,NatWest CC,NOM000792,1451,
BEIS,CSC,05/11/2018,Scholar Engagement,Award Costs,NatWest CC,NOM000792,3222.88,
DFID,CSC,05/11/2018,Scholar Engagement,Programme Costs,NatWest CC,NOM000792,71.9,
DFID,CSC,05/11/2018,Engagement,Programme Costs,NatWest CC,NOM000792,100,
DFID,CSC,02/11/2018,Tuition Fee,Award Costs,Bangor University,PIN036034,4770,
DFID,CSC,02/11/2018,Tuition Fee,Award Costs,University of Aberdeen,PIN036035,15000,
BEIS,CSC,02/11/2018,Scholar Allowances,Award Costs,Scholar,PIN036039,1000,
DFID,CSC,02/11/2018,Scholar Stipend,Award Costs,Scholar,PIN036042,6602,
DFID,CSC,02/11/2018,Scholar Stipend,Award Costs,Scholar,PIN036050,941.54,
DFID,CSC,02/11/2018,Scholar Allowances,Award Costs,Scholar,PIN036051,600,
DFID,CSC,02/11/2018,Tuition Fee,Award Costs,University of Manchester,PIN036054,18000,
DFID,CSC,02/11/2018,Tuition Fee,Award Costs,University of Manchester,PIN036055,12400,
DFID,CSC,02/11/2018,Tuition Fee,Award Costs,University of Manchester,PIN036056,17600,
DFID,CSC,02/11/2018,Tuition Fee,Award Costs,University of Manchester,PIN036057,14800,
DFID,CSC,02/11/2018,Tuition Fee,Award Costs,University of Manchester,PIN036058,17600,
DFID,CSC,02/11/2018,Tuition Fee,Award Costs,University of Manchester,PIN036059,13600,
DFID,CSC,02/11/2018,Tuition Fee,Award Costs,University of Manchester,PIN036060,17600,
DFID,CSC,02/11/2018,Tuition Fee,Award Costs,University of Manchester,PIN036061,12400,
DFID,CSC,02/11/2018,Tuition Fee,Award Costs,University of Manchester,PIN036062,16800,
DFID,CSC,02/11/2018,Tuition Fee,Award Costs,University of Manchester,PIN036063,13600,
DFID,CSC,02/11/2018,Tuition Fee,Award Costs,University of Manchester,PIN036064,16400,
DFID,CSC,02/11/2018,Tuition Fee,Award Costs,University of Manchester,PIN036065,17600,
DFID,CSC,02/11/2018,Tuition Fee,Award Costs,University of Manchester,PIN036066,15600,
DFID,CSC,02/11/2018,Tuition Fee,Award Costs,University of Manchester,PIN036067,16000,
DFID,CSC,02/11/2018,Tuition Fee,Award Costs,University of Manchester,PIN036068,17600,
DFID,CSC,02/11/2018,Tuition Fee,Award Costs,London School of Economics,PIN036069,16723.2,
DFID,CSC,02/11/2018,Tuition Fee,Award Costs,London School of Economics,PIN036070,16723.2,
DFID,CSC,02/11/2018,Tuition Fee,Award Costs,London School of Economics,PIN036071,16723.2,
DFID,CSC,02/11/2018,Tuition Fee,Award Costs,London School of Economics,PIN036072,17952,
DFID,CSC,02/11/2018,Tuition Fee,Award Costs,University of Kent,PIN036073,13648,
DFID,CSC,02/11/2018,Tuition Fee,Award Costs,Lond Sch Hygiene & Tropical Me,PIN036074,18000,
DFID,CSC,02/11/2018,Tuition Fee,Award Costs,Lond Sch Hygiene & Tropical Me,PIN036075,18000,
DFID,CSC,02/11/2018,Tuition Fee,Award Costs,Lond Sch Hygiene & Tropical Me,PIN036076,-3840,
DFID,CSC,02/11/2018,Tuition Fee,Award Costs,Lond Sch Hygiene & Tropical Me,PIN036077,510.72,
DFID,CSC,02/11/2018,Tuition Fee,Award Costs,Lond Sch Hygiene & Tropical Me,PIN036078,18000,
DFID,CSC,02/11/2018,Tuition Fee,Award Costs,Lond Sch Hygiene & Tropical Me,PIN036079,18000,
DFID,CSC,02/11/2018,Award Support Costs,Award Costs,Lond Sch Hygiene & Tropical Me,PIN036080,5000,
DFID,CSC,02/11/2018,Award Support Costs,Award Costs,University of Aberdeen,PIN036082,5000,
DFID,CSC,02/11/2018,Award Support Costs,Award Costs,University of Aberdeen,PIN036083,5000,
DFID,CSC,02/11/2018,Tuition Fee,Award Costs,University of Bristol,PIN036084,19800,
DFID,CSC,02/11/2018,Tuition Fee,Award Costs,University of Bristol,PIN036085,15200,
DFID,CSC,02/11/2018,Tuition Fee,Award Costs,University of Southampton,PIN036086,12908,
DFID,CSC,02/11/2018,Tuition Fee,Award Costs,University of Southampton,PIN036087,12480,
DFID,CSC,02/11/2018,Tuition Fee,Award Costs,University of Southampton,PIN036088,12854,
DFID,CSC,02/11/2018,Tuition Fee,Award Costs,University of Southampton,PIN036089,17602,
DFID,CSC,02/11/2018,Tuition Fee,Award Costs,Keele University,PIN036090,14000,
DFID,CSC,02/11/2018,Tuition Fee,Award Costs,Keele University,PIN036091,14000,
DFID,CSC,02/11/2018,Tuition Fee,Award Costs,University of Surrey,PIN036092,15840,
DFID,CSC,02/11/2018,Tuition Fee,Award Costs,University of Strathclyde,PIN036093,15000,
DFID,CSC,02/11/2018,Tuition Fee,Award Costs,University of Strathclyde,PIN036094,10400,
DFID,CSC,02/11/2018,Tuition Fee,Award Costs,Coventry University,PIN036095,12040,
DFID,CSC,02/11/2018,Tuition Fee,Award Costs,University of East London,PIN036096,10280,
DFID,CSC,02/11/2018,Visa Costs,Award Costs,Sheffield Hallam Univ,PIN036097,212,
DFID,CSC,02/11/2018,Scholar Travel,Award Costs,Sheffield Hallam Univ,PIN036097,29.5,
DFID,CSC,02/11/2018,Reimbursements,Award Costs,Sheffield Hallam Univ,PIN036097,186.6,
DFID,CSC,02/11/2018,Scholar Travel,Award Costs,Sheffield Hallam Univ,PIN036097,1051.3,
DFID,CSC,02/11/2018,Tuition Fee,Award Costs,Sheffield Hallam Univ,PIN036098,26500,Tuition fees for 2 scholars
DFID,CSC,02/11/2018,Tuition Fee,Award Costs,University of Dundee,PIN036099,8800,
DFID,CSC,02/11/2018,Tuition Fee,Award Costs,University of St  Andrews,PIN036100,99000,Tuition fees for 11 scholars
DFID,CSC,02/11/2018,Tuition Fee,Award Costs,Glasgow Caledonian University,PIN036101,10400,
DFID,CSC,02/11/2018,Award Support Costs,Award Costs,The University of York,PIN036102,5000,
DFID,CSC,02/11/2018,Tuition Fee,Award Costs,The University of York,PIN036102,16176,
DFID,CSC,02/11/2018,Award Support Costs,Award Costs,Cardiff University,PIN036103,5000,
DFID,CSC,02/11/2018,Tuition Fee,Award Costs,Cardiff University,PIN036103,14600,
DFID,CSC,02/11/2018,Visa Costs,Award Costs,Harper Adams University,PIN036104,113.35,
DFID,CSC,02/11/2018,Scholar Allowances,Award Costs,Harper Adams University,PIN036104,225,
DFID,CSC,02/11/2018,Tuition Fee,Award Costs,Harper Adams University,PIN036104,13350,
DFID,CSC,02/11/2018,Scholar Allowances,Award Costs,Harper Adams University,PIN036104,200,
DFID,CSC,02/11/2018,Scholar Travel,Award Costs,Harper Adams University,PIN036104,469.9,
DFID,CSC,02/11/2018,Visa Costs,Award Costs,Harper Adams University,PIN036105,113.35,
DFID,CSC,02/11/2018,Scholar Allowances,Award Costs,Harper Adams University,PIN036105,225,
DFID,CSC,02/11/2018,Tuition Fee,Award Costs,Harper Adams University,PIN036105,13350,
DFID,CSC,02/11/2018,Scholar Allowances,Award Costs,Harper Adams University,PIN036105,200,
DFID,CSC,02/11/2018,Scholar Travel,Award Costs,Harper Adams University,PIN036105,469.9,
DFID,CSC,02/11/2018,Scholar Travel,Award Costs,Brasenose College Oxford,PIN036106,514.3,
DFID,CSC,02/11/2018,Tuition Fee,Award Costs,Balliol College Oxford,PIN036109,3112,
DFID,CSC,02/11/2018,Tuition Fee,Award Costs,Balliol College Oxford,PIN036109,15932,
DFID,CSC,02/11/2018,Tuition Fee,Award Costs,St Catherine's College Oxford,PIN036110,15932,
DFID,CSC,02/11/2018,Tuition Fee,Award Costs,St Catherine's College Oxford,PIN036110,3112,
DFID,CSC,02/11/2018,Tuition Fee,Award Costs,ST PETERS COLLEGE OXFORD,PIN036111,3112,
DFID,CSC,02/11/2018,Tuition Fee,Award Costs,ST PETERS COLLEGE OXFORD,PIN036111,5311,
DFID,CSC,02/11/2018,Tuition Fee,Award Costs,Oriel College Oxford,PIN036112,3112,
DFID,CSC,02/11/2018,Tuition Fee,Award Costs,Oriel College Oxford,PIN036112,15932,
DFID,CSC,02/11/2018,Tuition Fee,Award Costs,Oriel College Oxford,PIN036112,3112,
DFID,CSC,02/11/2018,Tuition Fee,Award Costs,Oriel College Oxford,PIN036112,2394,
DFID,CSC,02/11/2018,Scholar Allowances,Award Costs,Scholar,PIN036118,699,
DFID,CSC,02/11/2018,Scholar Allowances,Award Costs,Scholar,PIN036118,699,
DFID,CSC,02/11/2018,Scholar Stipend,Award Costs,Scholar,PIN036118,1084,
DFID,CSC,02/11/2018,Scholar Allowances,Award Costs,Scholar,PIN036121,1626,
DFID,CSC,02/11/2018,Scholar Allowances,Award Costs,Scholar,PIN036121,1852,
DFID,CSC,02/11/2018,Scholar Stipend,Award Costs,Scholar,PIN036121,1065,
DFID,CSC,02/11/2018,Scholar Allowances,Award Costs,Scholar,PIN036122,1881.61,
DFID,CSC,02/11/2018,Scholar Allowances,Award Costs,Scholar,PIN036123,1943.09,
DFID,CSC,02/11/2018,Scholar Allowances,Award Costs,Scholar,PIN036124,687.99,
DFID,CSC,02/11/2018,Scholar Allowances,Award Costs,Scholar,PIN036124,687.99,
DFID,CSC,02/11/2018,Scholar Allowances,Award Costs,Scholar,PIN036125,856.99,
DFID,CSC,02/11/2018,Scholar Allowances,Award Costs,Scholar,PIN036125,856.99,
DFID,CSC,02/11/2018,Scholar Allowances,Award Costs,Scholar,PIN036126,1146.18,
DFID,CSC,02/11/2018,Scholar Allowances,Award Costs,Scholar,PIN036126,1146.18,
DFID,CSC,02/11/2018,Scholar Allowances,Award Costs,Scholar,PIN036127,1108.56,
DFID,CSC,02/11/2018,Scholar Allowances,Award Costs,Scholar,PIN036128,699,
DFID,CSC,02/11/2018,Scholar Allowances,Award Costs,Scholar,PIN036128,699,
DFID,CSC,02/11/2018,Scholar Allowances,Award Costs,Scholar,PIN036130,677.62,
DFID,CSC,02/11/2018,Scholar Allowances,Award Costs,Scholar,PIN036130,106.77,
DFID,CSC,09/11/2018,Tuition Fee,Award Costs,Bangor University,PIN036133,4770,
BEIS,CSC,09/11/2018,Scholar Allowances,Award Costs,Scholar,PIN036134,821,
DFID,CSC,09/11/2018,Scholar Allowances,Award Costs,The University of Leeds,PIN036135,1500,
DFID,CSC,09/11/2018,Scholar Travel,Award Costs,The University of Leeds,PIN036135,3307.44,
DFID,CSC,09/11/2018,Scholar Stipend,Award Costs,Scholar,PIN036138,3021.85,
DFID,CSC,09/11/2018,Scholar Stipend,Award Costs,Scholar,PIN036141,526.41,
DFID,CSC,09/11/2018,Visa Costs,Award Costs,Scholar,PIN036151,494.2,
DFID,CSC,09/11/2018,Immigration Health Surcharge,Award Costs,Scholar,PIN036151,375,
DFID,CSC,09/11/2018,Scholar Stipend,Award Costs,Scholar,PIN036154,532.5,
DFID,CSC,09/11/2018,Scholar Allowances,Award Costs,Scholar,PIN036155,262.2,
DFID,CSC,09/11/2018,Scholar Allowances,Award Costs,Scholar,PIN036155,176.06,
DFID,CSC,09/11/2018,Scholar Stipend,Award Costs,Scholar,PIN036155,2045.57,
DFID,CSC,09/11/2018,Postage & Courier,Admin Costs,Mailability,PIN036161,875.61,
DFID,CSC,09/11/2018,Engagement,Programme Costs,Society for Research into Higher Education,PIN036162,95.83,
DFID,CSC,09/11/2018,Engagement,Programme Costs,Society for Research into Higher Education,PIN036162,479.17,
DFID,CSC,16/11/2018,Commission Meetings,Admin Costs,Commissioner,PIN036188,750,
DFID,CSC,16/11/2018,Commission Meetings,Admin Costs,Commissioner,PIN036189,750,
DFID,CSC,16/11/2018,Commission Meetings,Admin Costs,Commissioner,PIN036191,750,
DFID,CSC,16/11/2018,Scholar Stipend,Award Costs,Scholar,PIN036196,3683.39,
DFID,CSC,16/11/2018,Tuition Fee,Award Costs,The University of Edinburgh,PIN036197,4600,
DFID,CSC,16/11/2018,Tuition Fee,Award Costs,The University of Edinburgh,PIN036198,770,
DFID,CSC,16/11/2018,Tuition Fee,Award Costs,The University of Edinburgh,PIN036199,1540,
DFID,CSC,16/11/2018,Tuition Fee,Award Costs,The University of Edinburgh,PIN036200,2310,
DFID,CSC,16/11/2018,Tuition Fee,Award Costs,The University of Edinburgh,PIN036201,1540,
DFID,CSC,16/11/2018,Tuition Fee,Award Costs,University of London,PIN036202,710,
DFID,CSC,16/11/2018,Tuition Fee,Award Costs,Bangor University,PIN036203,3670,
DFID,CSC,16/11/2018,Tuition Fee,Award Costs,Bangor University,PIN036204,3670,
DFID,CSC,16/11/2018,Tuition Fee,Award Costs,Bangor University,PIN036205,8440,
DFID,CSC,16/11/2018,Tuition Fee,Award Costs,University College London Fees,PIN036206,18240,
DFID,CSC,16/11/2018,Tuition Fee,Award Costs,London South Bank University,PIN036207,17091,
DFID,CSC,16/11/2018,Tuition Fee,Award Costs,The University of Edinburgh,PIN036208,770,
DFID,CSC,16/11/2018,Tuition Fee,Award Costs,The University of Edinburgh,PIN036209,16105,
DFID,CSC,16/11/2018,Award Support Costs,Award Costs,University College London,PIN036210,10000,
DFID,CSC,16/11/2018,Tuition Fee,Award Costs,University College London Fees,PIN036211,14592,
DFID,CSC,16/11/2018,Tuition Fee,Award Costs,Bangor University,PIN036212,15200,
DFID,CSC,16/11/2018,Scholar Travel,Award Costs,Queen Mary University of London,PIN036213,2995.84,
DFID,CSC,16/11/2018,Scholar Travel,Award Costs,Lond Sch Hygiene & Tropical Me,PIN036214,2166.54,
DFID,CSC,16/11/2018,Tuition Fee,Award Costs,The University of Birmingham,PIN036215,13032,
DFID,CSC,16/11/2018,Tuition Fee,Award Costs,The University of Birmingham,PIN036216,16224,
DFID,CSC,16/11/2018,Tuition Fee,Award Costs,The University of Birmingham,PIN036217,10944,
DFID,CSC,16/11/2018,Tuition Fee,Award Costs,The University of Birmingham,PIN036218,16488,
DFID,CSC,16/11/2018,Tuition Fee,Award Costs,The University of Birmingham,PIN036219,16488,
DFID,CSC,16/11/2018,Tuition Fee,Award Costs,The University of Birmingham,PIN036220,13032,
DFID,CSC,16/11/2018,Tuition Fee,Award Costs,The University of Leeds,PIN036221,17200,
DFID,CSC,16/11/2018,Tuition Fee,Award Costs,The University of Leeds,PIN036222,14800,
DFID,CSC,16/11/2018,Tuition Fee,Award Costs,The University of Leeds,PIN036223,18000,
DFID,CSC,16/11/2018,Tuition Fee,Award Costs,The University of Leeds,PIN036224,14400,
DFID,CSC,16/11/2018,Tuition Fee,Award Costs,The University of Leeds,PIN036225,14000,
DFID,CSC,16/11/2018,Tuition Fee,Award Costs,The University of Leeds,PIN036226,17600,
DFID,CSC,16/11/2018,Tuition Fee,Award Costs,The University of Leeds,PIN036227,14400,
DFID,CSC,16/11/2018,Tuition Fee,Award Costs,The University of Leeds,PIN036228,17600,
DFID,CSC,16/11/2018,Tuition Fee,Award Costs,The University of Leeds,PIN036229,15600,
DFID,CSC,16/11/2018,Tuition Fee,Award Costs,University of Glasgow,PIN036231,16000,
DFID,CSC,16/11/2018,Tuition Fee,Award Costs,University of Glasgow,PIN036232,16650,
DFID,CSC,16/11/2018,Tuition Fee,Award Costs,University of Glasgow,PIN036233,16650,
DFID,CSC,16/11/2018,Tuition Fee,Award Costs,University of Glasgow,PIN036234,17900,
DFID,CSC,16/11/2018,Award Support Costs,Award Costs,University of Glasgow,PIN036235,12000,
DFID,CSC,16/11/2018,Tuition Fee,Award Costs,University of Glasgow,PIN036236,13320,
DFE,CSC,16/11/2018,Tuition Fee,Award Costs,University of Glasgow,PIN036237,16650,
DFID,CSC,16/11/2018,Tuition Fee,Award Costs,University of Glasgow,PIN036238,16120,
DFID,CSC,16/11/2018,Tuition Fee,Award Costs,University of Glasgow,PIN036239,17900,
DFID,CSC,16/11/2018,Tuition Fee,Award Costs,University of Glasgow,PIN036240,17900,
DFID,CSC,16/11/2018,Tuition Fee,Award Costs,University of Glasgow,PIN036241,14560,
DFID,CSC,16/11/2018,Tuition Fee,Award Costs,University of Glasgow,PIN036242,15600,
DFID,CSC,16/11/2018,Tuition Fee,Award Costs,University of Southampton,PIN036243,2138.21,
DFID,CSC,16/11/2018,Tuition Fee,Award Costs,The University of Edinburgh,PIN036244,770,
DFID,CSC,16/11/2018,Tuition Fee,Award Costs,The University of Edinburgh,PIN036245,770,
DFID,CSC,16/11/2018,Tuition Fee,Award Costs,Aston University,PIN036246,10400,
DFID,CSC,16/11/2018,Tuition Fee,Award Costs,Aston University,PIN036247,14440,
DFID,CSC,16/11/2018,Tuition Fee,Award Costs,University College London Fees,PIN036248,18240,
DFID,CSC,16/11/2018,Tuition Fee,Award Costs,University College London Fees,PIN036249,18850,
DFID,CSC,16/11/2018,Tuition Fee,Award Costs,University College London Fees,PIN036250,17152,
DFID,CSC,16/11/2018,Tuition Fee,Award Costs,University College London Fees,PIN036251,18000,
DFID,CSC,16/11/2018,Tuition Fee,Award Costs,University College London Fees,PIN036252,12816,
DFID,CSC,16/11/2018,Tuition Fee,Award Costs,University College London Fees,PIN036253,18240,
DFID,CSC,16/11/2018,Tuition Fee,Award Costs,University College London Fees,PIN036254,18000,
DFID,CSC,16/11/2018,Tuition Fee,Award Costs,University College London Fees,PIN036255,18850,
DFID,CSC,16/11/2018,Tuition Fee,Award Costs,University College London Fees,PIN036256,18000,
DFID,CSC,16/11/2018,Tuition Fee,Award Costs,University College London Fees,PIN036257,18000,
DFID,CSC,16/11/2018,Tuition Fee,Award Costs,University College London Fees,PIN036258,18850,
DFID,CSC,16/11/2018,Tuition Fee,Award Costs,University College London Fees,PIN036259,15976,
DFID,CSC,16/11/2018,Tuition Fee,Award Costs,University College London Fees,PIN036260,18240,
DFID,CSC,16/11/2018,Tuition Fee,Award Costs,University College London Fees,PIN036261,18000,
DFID,CSC,16/11/2018,Tuition Fee,Award Costs,The University of Birmingham,PIN036262,10944,
DFID,CSC,16/11/2018,Tuition Fee,Award Costs,University College London Fees,PIN036263,18000,
DFID,CSC,16/11/2018,Scholar Allowances,Award Costs,Scholar,PIN036276,458,
DFID,CSC,16/11/2018,Scholar Stipend,Award Costs,Scholar,PIN036276,2168,
DFID,CSC,20/11/2018,Scholar Stipend,Award Costs,Scholar,PIN036279,1636.01,
DFID,CSC,20/11/2018,Scholar Stipend,Award Costs,Scholar,PIN036280,3252,
DFID,CSC,23/11/2018,Scholar Allowances,Award Costs,Scholar,PIN036281,600,
DFID,CSC,23/11/2018,Tuition Fee,Award Costs,Staffordshire University,PIN036285,2115,
DFID,CSC,23/11/2018,Tuition Fee,Award Costs,University of Strathclyde,PIN036286,3600,
DFID,CSC,23/11/2018,Tuition Fee,Award Costs,University of Strathclyde,PIN036287,3600,
DFID,CSC,23/11/2018,Tuition Fee,Award Costs,University of Strathclyde,PIN036288,3600,
DFID,CSC,23/11/2018,Tuition Fee,Award Costs,University of Strathclyde,PIN036289,3600,
DFID,CSC,23/11/2018,Tuition Fee,Award Costs,Staffordshire University,PIN036290,2115,
DFID,CSC,23/11/2018,Tuition Fee,Award Costs,Staffordshire University,PIN036291,2115,
DFID,CSC,23/11/2018,Tuition Fee,Award Costs,Staffordshire University,PIN036292,2115,
DFID,CSC,23/11/2018,Tuition Fee,Award Costs,University of Portsmouth,PIN036293,15100,
DFID,CSC,23/11/2018,Tuition Fee,Award Costs,Keele University,PIN036294,14000,
DFID,CSC,23/11/2018,Tuition Fee,Award Costs,BISHOP GROSSETESTE UNIVERSITY,PIN036295,12500,
DFID,CSC,23/11/2018,Tuition Fee,Award Costs,Nottingham Trent University,PIN036296,13250,
DFID,CSC,23/11/2018,Tuition Fee,Award Costs,Glasgow Caledonian University,PIN036297,12600,
DFID,CSC,23/11/2018,Tuition Fee,Award Costs,University of Southampton,PIN036298,17546,
DFID,CSC,23/11/2018,Tuition Fee,Award Costs,University of Glasgow,PIN036299,16650,
DFID,CSC,23/11/2018,Tuition Fee,Award Costs,Univ of Central Lancashire,PIN036300,12950,
DFID,CSC,23/11/2018,Tuition Fee,Award Costs,The University of Nottingham,PIN036301,16965,
DFID,CSC,23/11/2018,Tuition Fee,Award Costs,The University of Nottingham,PIN036302,16965,
DFID,CSC,23/11/2018,Tuition Fee,Award Costs,The University of Nottingham,PIN036303,19935,
DFID,CSC,23/11/2018,Tuition Fee,Award Costs,The University of Nottingham,PIN036304,16695,
DFID,CSC,23/11/2018,Tuition Fee,Award Costs,The University of Warwick,PIN036305,22500,
DFID,CSC,23/11/2018,Tuition Fee,Award Costs,The University of Warwick,PIN036306,22500,
DFID,CSC,23/11/2018,Tuition Fee,Award Costs,The University of Warwick,PIN036307,19560,
DFID,CSC,23/11/2018,Tuition Fee,Award Costs,The University of Warwick,PIN036308,22500,
DFID,CSC,23/11/2018,Tuition Fee,Award Costs,The University of Warwick,PIN036309,19300,
DFID,CSC,23/11/2018,Tuition Fee,Award Costs,The University of Warwick,PIN036310,22500,
DFID,CSC,23/11/2018,Tuition Fee,Award Costs,The University of Warwick,PIN036311,22500,
DFID,CSC,23/11/2018,Scholar Travel,Award Costs,Lond Sch Hygiene & Tropical Me,PIN036312,430.9,
DFID,CSC,23/11/2018,Reimbursements,Award Costs,Lond Sch Hygiene & Tropical Me,PIN036312,112.79,
DFID,CSC,23/11/2018,Scholar Allowances,Award Costs,Lond Sch Hygiene & Tropical Me,PIN036312,225,
DFID,CSC,23/11/2018,Scholar Allowances,Award Costs,Lond Sch Hygiene & Tropical Me,PIN036312,200,
DFID,CSC,23/11/2018,Tuition Fee,Award Costs,Lond Sch Hygiene & Tropical Me,PIN036312,22500,
DFID,CSC,23/11/2018,Scholar Travel,Award Costs,Lond Sch Hygiene & Tropical Me,PIN036313,601.1,
DFID,CSC,23/11/2018,Reimbursements,Award Costs,Lond Sch Hygiene & Tropical Me,PIN036313,99.78,
DFID,CSC,23/11/2018,Scholar Allowances,Award Costs,Lond Sch Hygiene & Tropical Me,PIN036313,225,
DFID,CSC,23/11/2018,Scholar Allowances,Award Costs,Lond Sch Hygiene & Tropical Me,PIN036313,200,
DFID,CSC,23/11/2018,Tuition Fee,Award Costs,Lond Sch Hygiene & Tropical Me,PIN036313,22500,
DFID,CSC,23/11/2018,Tuition Fee,Award Costs,University of Strathclyde,PIN036314,18750,
DFID,CSC,23/11/2018,Tuition Fee,Award Costs,University of Strathclyde,PIN036315,18750,
DFID,CSC,23/11/2018,Tuition Fee,Award Costs,University of Strathclyde,PIN036316,18750,
DFID,CSC,23/11/2018,Tuition Fee,Award Costs,University of Bristol,PIN036317,16400,
DFID,CSC,23/11/2018,Tuition Fee,Award Costs,University of Bristol,PIN036318,5000,
DFID,CSC,23/11/2018,Tuition Fee,Award Costs,Green Templeton College,PIN036319,17386,
DFID,CSC,23/11/2018,Tuition Fee,Award Costs,Northumbria University,PIN036320,10400,
DFID,CSC,23/11/2018,Tuition Fee,Award Costs,Green Templeton College,PIN036321,18000,
DFID,CSC,23/11/2018,Award Support Costs,Award Costs,University of Oxford,PIN036322,7500,
DFID,CSC,23/11/2018,Tuition Fee,Award Costs,Liverpool John Moores University,PIN036323,10600,
DFID,CSC,23/11/2018,Tuition Fee,Award Costs,Keele University,PIN036324,12800,
DFID,CSC,23/11/2018,Tuition Fee,Award Costs,Imperial College London,PIN036325,18000,
DFID,CSC,23/11/2018,Tuition Fee,Award Costs,London School of Economics,PIN036326,16723,
DFID,CSC,23/11/2018,Tuition Fee,Award Costs,Lancaster University,PIN036327,11420,
DFID,CSC,23/11/2018,Tuition Fee,Award Costs,Lancaster University,PIN036328,13108,
DFID,CSC,23/11/2018,Tuition Fee,Award Costs,Queens University Belfast,PIN036329,15760,
DFID,CSC,23/11/2018,Award Support Costs,Award Costs,Queens University Belfast,PIN036330,5000,
DFID,CSC,23/11/2018,Tuition Fee,Award Costs,Queens University Belfast,PIN036330,15760,
DFID,CSC,23/11/2018,Tuition Fee,Award Costs,Cardiff University,PIN036331,15960,
DFID,CSC,23/11/2018,Tuition Fee,Award Costs,Cardiff University,PIN036332,12520,
DFID,CSC,23/11/2018,Tuition Fee,Award Costs,Cardiff University,PIN036333,15960,
DFID,CSC,23/11/2018,Tuition Fee,Award Costs,Cardiff University,PIN036334,11600,
DFID,CSC,23/11/2018,Tuition Fee,Award Costs,Cardiff University,PIN036335,14600,
DFID,CSC,23/11/2018,Tuition Fee,Award Costs,Cardiff University,PIN036336,14600,
DFID,CSC,23/11/2018,Tuition Fee,Award Costs,University of Bradford,PIN036337,12520,
DFID,CSC,23/11/2018,Tuition Fee,Award Costs,University of Bradford,PIN036338,14784,
DFID,CSC,23/11/2018,Tuition Fee,Award Costs,University of Bradford,PIN036339,14784,
DFID,CSC,23/11/2018,Tuition Fee,Award Costs,University of Sheffield,PIN036340,12200,
DFID,CSC,23/11/2018,Award Support Costs,Award Costs,University of Sheffield,PIN036341,12000,
DFID,CSC,23/11/2018,Tuition Fee,Award Costs,University of Sheffield,PIN036341,17160,
DFE,CSC,23/11/2018,Tuition Fee,Award Costs,Keble College Oxford,PIN036342,3112,
DFE,CSC,23/11/2018,Tuition Fee,Award Costs,Keble College Oxford,PIN036342,19915,
DFID,CSC,23/11/2018,Tuition Fee,Award Costs,Keble College Oxford,PIN036342,18000,
DFID,CSC,23/11/2018,Tuition Fee,Award Costs,Keble College Oxford,PIN036342,18000,
DFID,CSC,23/11/2018,Tuition Fee,Award Costs,The University of Nottingham,PIN036343,11880,
DFID,CSC,23/11/2018,Tuition Fee,Award Costs,The University of Nottingham,PIN036344,18000,
DFID,CSC,23/11/2018,Tuition Fee,Award Costs,The University of Nottingham,PIN036345,13356,
DFID,CSC,23/11/2018,Tuition Fee,Award Costs,The University of Nottingham,PIN036346,13080,
DFID,CSC,23/11/2018,Tuition Fee,Award Costs,The University of Nottingham,PIN036347,15296,
DFID,CSC,23/11/2018,Tuition Fee,Award Costs,The University of Nottingham,PIN036348,11880,
DFID,CSC,23/11/2018,Tuition Fee,Award Costs,The University of Leeds,PIN036349,17600,
DFID,CSC,23/11/2018,Tuition Fee,Award Costs,The University of Leeds,PIN036350,14400,
DFID,CSC,23/11/2018,Tuition Fee,Award Costs,The University of Leeds,PIN036351,15800,
DFID,CSC,23/11/2018,Award Support Costs,Award Costs,University of Strathclyde,PIN036352,5000,
DFID,CSC,23/11/2018,Award Support Costs,Award Costs,Lond Sch Hygiene & Tropical Me,PIN036353,4500,
DFID,CSC,23/11/2018,Tuition Fee,Award Costs,University of Newcastle upon Tyne,PIN036354,21000,
DFID,CSC,23/11/2018,Tuition Fee,Award Costs,University of Newcastle upon Tyne,PIN036355,15992,
DFID,CSC,23/11/2018,Tuition Fee,Award Costs,University of Newcastle upon Tyne,PIN036356,15992,
DFID,CSC,23/11/2018,Tuition Fee,Award Costs,University of Newcastle upon Tyne,PIN036357,16200,
DFID,CSC,23/11/2018,Tuition Fee,Award Costs,University of Newcastle upon Tyne,PIN036358,17280,
DFID,CSC,23/11/2018,Tuition Fee,Award Costs,University of Newcastle upon Tyne,PIN036359,21000,
DFID,CSC,23/11/2018,Tuition Fee,Award Costs,University of Newcastle upon Tyne,PIN036360,13672,
DFID,CSC,23/11/2018,Tuition Fee,Award Costs,University of Newcastle upon Tyne,PIN036361,21600,
DFID,CSC,23/11/2018,Tuition Fee,Award Costs,University of Newcastle upon Tyne,PIN036362,21000,
DFID,CSC,23/11/2018,Tuition Fee,Award Costs,University of Newcastle upon Tyne,PIN036363,17280,
DFID,CSC,23/11/2018,Tuition Fee,Award Costs,Loughborough University,PIN036364,15766.4,
DFID,CSC,23/11/2018,Tuition Fee,Award Costs,Loughborough University,PIN036365,15766.4,
DFID,CSC,23/11/2018,Tuition Fee,Award Costs,Loughborough University,PIN036366,16800,
DFID,CSC,23/11/2018,Tuition Fee,Award Costs,Loughborough University,PIN036367,13680,
DFID,CSC,23/11/2018,Tuition Fee,Award Costs,University of Aberdeen,PIN036368,14400,
DFID,CSC,23/11/2018,Tuition Fee,Award Costs,University of Aberdeen,PIN036369,14400,
DFID,CSC,23/11/2018,Tuition Fee,Award Costs,University of Aberdeen,PIN036370,14400,
DFID,CSC,23/11/2018,Tuition Fee,Award Costs,University of Aberdeen,PIN036371,14400,
DFID,CSC,23/11/2018,Tuition Fee,Award Costs,University of Aberdeen,PIN036372,12000,
DFID,CSC,23/11/2018,Tuition Fee,Award Costs,University of Sussex,PIN036373,12384,
DFID,CSC,23/11/2018,Tuition Fee,Award Costs,University of Sussex,PIN036374,15500,
DFID,CSC,23/11/2018,Tuition Fee,Award Costs,University of Sussex,PIN036375,14320,
DFID,CSC,23/11/2018,Tuition Fee,Award Costs,University of Sussex,PIN036376,12384,
DFID,CSC,23/11/2018,Tuition Fee,Award Costs,University of Sussex,PIN036377,12384,
DFID,CSC,23/11/2018,Tuition Fee,Award Costs,University of Sussex,PIN036378,10216.8,
DFID,CSC,23/11/2018,Tuition Fee,Award Costs,University of Sussex,PIN036379,12400,
DFID,CSC,23/11/2018,Scholar Travel,Award Costs,Lond Sch Hygiene & Tropical Me,PIN036380,442.5,
DFID,CSC,23/11/2018,Reimbursements,Award Costs,Lond Sch Hygiene & Tropical Me,PIN036380,78.32,
DFID,CSC,23/11/2018,Scholar Allowances,Award Costs,Lond Sch Hygiene & Tropical Me,PIN036380,225,
DFID,CSC,23/11/2018,Scholar Allowances,Award Costs,Lond Sch Hygiene & Tropical Me,PIN036380,200,
DFID,CSC,23/11/2018,Tuition Fee,Award Costs,Lond Sch Hygiene & Tropical Me,PIN036380,22500,
DFID,CSC,23/11/2018,Tuition Fee,Award Costs,London School of Economics,PIN036381,60336,Tuition fees for 3 scholars
DFID,CSC,23/11/2018,Tuition Fee,Award Costs,University of Kent,PIN036382,11432,
DFID,CSC,23/11/2018,Scholar Travel,Award Costs,Lond Sch Hygiene & Tropical Me,PIN036383,660,
DFID,CSC,23/11/2018,Reimbursements,Award Costs,Lond Sch Hygiene & Tropical Me,PIN036383,75.82,
DFID,CSC,23/11/2018,Scholar Allowances,Award Costs,Lond Sch Hygiene & Tropical Me,PIN036383,225,
DFID,CSC,23/11/2018,Scholar Allowances,Award Costs,Lond Sch Hygiene & Tropical Me,PIN036383,200,
DFID,CSC,23/11/2018,Tuition Fee,Award Costs,Lond Sch Hygiene & Tropical Me,PIN036383,22500,
DFID,CSC,23/11/2018,Scholar Travel,Award Costs,Lond Sch Hygiene & Tropical Me,PIN036384,473.5,
DFID,CSC,23/11/2018,Reimbursements,Award Costs,Lond Sch Hygiene & Tropical Me,PIN036384,114.09,
DFID,CSC,23/11/2018,Scholar Allowances,Award Costs,Lond Sch Hygiene & Tropical Me,PIN036384,225,
DFID,CSC,23/11/2018,Scholar Allowances,Award Costs,Lond Sch Hygiene & Tropical Me,PIN036384,200,
DFID,CSC,23/11/2018,Tuition Fee,Award Costs,Lond Sch Hygiene & Tropical Me,PIN036384,22500,
DFID,CSC,23/11/2018,Scholar Travel,Award Costs,Lond Sch Hygiene & Tropical Me,PIN036385,660,
DFID,CSC,23/11/2018,Reimbursements,Award Costs,Lond Sch Hygiene & Tropical Me,PIN036385,75.82,
DFID,CSC,23/11/2018,Scholar Allowances,Award Costs,Lond Sch Hygiene & Tropical Me,PIN036385,225,
DFID,CSC,23/11/2018,Scholar Allowances,Award Costs,Lond Sch Hygiene & Tropical Me,PIN036385,200,
DFID,CSC,23/11/2018,Tuition Fee,Award Costs,Lond Sch Hygiene & Tropical Me,PIN036385,22500,
DFID,CSC,23/11/2018,Scholar Engagement,Programme Costs,Cumberland Lodge Enterprises Limited,PIN036387,3763,
DFID,CSC,23/11/2018,Scholar Engagement,Programme Costs,Common Purpose Student Experience Ltd,PIN036388,2000,
DFID,CSC,23/11/2018,Scholar Engagement,Programme Costs,Common Purpose Student Experience Ltd,PIN036388,10000,
DFID,CSC,23/11/2018,Fieldwork Airfare,Award Costs,Diversity Travel,PIN036389,653.7,
DFID,CSC,23/11/2018,Fieldwork Airfare,Award Costs,Diversity Travel,PIN036389,663.51,
BEIS,CSC,23/11/2018,Scholar Travel,Award Costs,Diversity Travel,PIN036389,786.5,
DFID,CSC,23/11/2018,Fieldwork Airfare,Award Costs,Diversity Travel,PIN036389,366,
DFID,CSC,23/11/2018,Fieldwork Airfare,Award Costs,Diversity Travel,PIN036390,1260.98,
DFID,CSC,23/11/2018,Scholar Travel,Award Costs,Diversity Travel,PIN036390,8.5,
DFID,CSC,23/11/2018,Scholar Travel,Award Costs,Diversity Travel,PIN036390,549.66,
DFID,CSC,23/11/2018,Scholar Travel,Award Costs,Diversity Travel,PIN036390,619.51,
DFID,CSC,23/11/2018,Scholar Travel,Award Costs,Diversity Travel,PIN036390,588.66,
DFID,CSC,23/11/2018,Scholar Travel,Award Costs,Diversity Travel,PIN036390,461.36,
DFID,CSC,23/11/2018,Scholar Travel,Award Costs,Diversity Travel,PIN036390,438.08,
DFID,CSC,23/11/2018,Scholar Travel,Award Costs,Diversity Travel,PIN036390,391.88,
DFID,CSC,23/11/2018,Scholar Travel,Award Costs,Diversity Travel,PIN036390,430.28,
DFID,CSC,23/11/2018,Scholar Travel,Award Costs,Diversity Travel,PIN036392,1168.9,
DFID,CSC,23/11/2018,Scholar Travel,Award Costs,Diversity Travel,PIN036392,24.9,
DFID,CSC,23/11/2018,Scholar Travel,Award Costs,Diversity Travel,PIN036392,820,
DFID,CSC,23/11/2018,Scholar Travel,Award Costs,Diversity Travel,PIN036392,695.11,
DFID,CSC,23/11/2018,Scholar Travel,Award Costs,Diversity Travel,PIN036392,495.91,
DFID,CSC,23/11/2018,Scholar Travel,Award Costs,Diversity Travel,PIN036392,361.3,
DFID,CSC,23/11/2018,Scholar Travel,Award Costs,Diversity Travel,PIN036392,622.51,
DFID,CSC,23/11/2018,Scholar Travel,Award Costs,Diversity Travel,PIN036392,441.08,
DFID,CSC,23/11/2018,Scholar Travel,Award Costs,Diversity Travel,PIN036392,546.92,
DFID,CSC,23/11/2018,Fieldwork Airfare,Award Costs,Diversity Travel,PIN036392,553.82,
DFID,CSC,23/11/2018,Scholar Travel,Award Costs,Diversity Travel,PIN036392,27.31,
DFID,CSC,23/11/2018,Scholar Travel,Award Costs,Diversity Travel,PIN036392,364.1,
DFID,CSC,23/11/2018,Scholar Travel,Award Costs,Diversity Travel,PIN036392,504.98,
DFID,CSC,23/11/2018,Fieldwork Airfare,Award Costs,Diversity Travel,PIN036392,958.48,
DFID,CSC,23/11/2018,Scholar Travel,Award Costs,Diversity Travel,PIN036392,506.48,
DFID,CSC,23/11/2018,Fieldwork Airfare,Award Costs,Diversity Travel,PIN036392,1726.01,
DFID,CSC,23/11/2018,Scholar Travel,Award Costs,Diversity Travel,PIN036393,663.6,
DFID,CSC,23/11/2018,Fieldwork Airfare,Award Costs,Diversity Travel,PIN036393,615.07,
DFID,CSC,23/11/2018,Scholar Travel,Award Costs,Diversity Travel,PIN036393,446.87,
DFID,CSC,23/11/2018,Scholar Travel,Award Costs,Diversity Travel,PIN036393,13,
DFID,CSC,23/11/2018,Scholar Travel,Award Costs,Diversity Travel,PIN036394,308.48,
DFID,CSC,23/11/2018,Scholar Travel,Award Costs,Diversity Travel,PIN036394,518.3,
DFID,CSC,23/11/2018,Scholar Travel,Award Costs,Diversity Travel,PIN036395,885.1,
DFID,CSC,23/11/2018,Scholar Travel,Award Costs,Diversity Travel,PIN036395,649.6,
DFID,CSC,23/11/2018,Scholar Travel,Award Costs,Diversity Travel,PIN036395,620.7,
DFID,CSC,23/11/2018,Scholar Travel,Award Costs,Diversity Travel,PIN036395,648.2,
DFID,CSC,23/11/2018,Scholar Travel,Award Costs,Diversity Travel,PIN036395,722.7,
DFID,CSC,23/11/2018,Scholar Travel,Award Costs,Diversity Travel,PIN036395,415.4,
DFID,CSC,23/11/2018,Scholar Travel,Award Costs,Diversity Travel,PIN036395,377.5,
DFID,CSC,23/11/2018,Scholar Travel,Award Costs,Diversity Travel,PIN036395,14.1,
DFID,CSC,23/11/2018,Scholar Travel,Award Costs,Diversity Travel,PIN036395,314.2,
DFID,CSC,23/11/2018,Fieldwork Airfare,Award Costs,Diversity Travel,PIN036395,79,
DFID,CSC,23/11/2018,Scholar Travel,Award Costs,Diversity Travel,PIN036395,522.2,
DFID,CSC,23/11/2018,Scholar Travel,Award Costs,Diversity Travel,PIN036395,377.8,
DFID,CSC,23/11/2018,Scholar Travel,Award Costs,Diversity Travel,PIN036395,610.8,
DFID,CSC,23/11/2018,Scholar Travel,Award Costs,Diversity Travel,PIN036395,36.1,
DFID,CSC,23/11/2018,Scholar Travel,Award Costs,Diversity Travel,PIN036395,379.8,
DFID,CSC,23/11/2018,Scholar Travel,Award Costs,Diversity Travel,PIN036395,746.06,
DFID,CSC,23/11/2018,Fieldwork Airfare,Award Costs,Diversity Travel,PIN036396,535.9,
DFID,CSC,23/11/2018,Scholar Travel,Award Costs,Diversity Travel,PIN036396,654.41,
DFID,CSC,23/11/2018,Scholar Travel,Award Costs,Diversity Travel,PIN036396,21,
DFID,CSC,23/11/2018,Scholar Travel,Award Costs,Diversity Travel,PIN036396,452.66,
DFID,CSC,23/11/2018,Scholar Travel,Award Costs,Diversity Travel,PIN036396,306.91,
DFID,CSC,23/11/2018,Fieldwork Airfare,Award Costs,Diversity Travel,PIN036396,30,
DFID,CSC,23/11/2018,Fieldwork Airfare,Award Costs,Diversity Travel,PIN036396,165.5,
DFID,CSC,23/11/2018,Fieldwork Airfare,Award Costs,Diversity Travel,PIN036396,688.21,
DFID,CSC,23/11/2018,Scholar Travel,Award Costs,Diversity Travel,PIN036396,574.91,
DFID,CSC,23/11/2018,Scholar Travel,Award Costs,Diversity Travel,PIN036396,528.71,
DFID,CSC,23/11/2018,Fieldwork Airfare,Award Costs,Diversity Travel,PIN036396,785.11,
DFID,CSC,23/11/2018,Scholar Travel,Award Costs,Diversity Travel,PIN036396,424.41,
DFID,CSC,23/11/2018,Scholar Travel,Award Costs,Diversity Travel,PIN036396,509.66,
DFID,CSC,23/11/2018,Scholar Travel,Award Costs,Diversity Travel,PIN036396,592.36,
DFID,CSC,23/11/2018,Scholar Travel,Award Costs,Diversity Travel,PIN036396,541.12,
DFID,CSC,23/11/2018,Scholar Travel,Award Costs,Diversity Travel,PIN036396,802.62,
DFID,CSC,23/11/2018,Scholar Travel,Award Costs,Diversity Travel,PIN036396,559.71,
DFID,CSC,23/11/2018,Fieldwork Airfare,Award Costs,Diversity Travel,PIN036396,1100.51,
DFID,CSC,23/11/2018,Scholar Travel,Award Costs,Diversity Travel,PIN036396,356.32,
DFID,CSC,23/11/2018,Scholar Travel,Award Costs,Diversity Travel,PIN036396,545.12,
DFID,CSC,23/11/2018,Scholar Travel,Award Costs,Diversity Travel,PIN036396,510.18,
DFID,CSC,23/11/2018,Scholar Travel,Award Costs,Diversity Travel,PIN036396,597.77,
DFID,CSC,26/11/2018,Scholar Allowances,Award Costs,Scholar,PIN036398,1382.71,
DFID,CSC,26/11/2018,Scholar Allowances,Award Costs,Scholar,PIN036399,1398,
DFID,CSC,26/11/2018,Scholar Allowances,Award Costs,Scholar,PIN036400,699,
DFID,CSC,26/11/2018,Scholar Allowances,Award Costs,Scholar,PIN036401,1194.61,
DFID,CSC,26/11/2018,Scholar Allowances,Award Costs,Scholar,PIN036401,1194.61,
DFID,CSC,26/11/2018,Scholar Allowances,Award Costs,Scholar,PIN036402,511.93,
DFID,CSC,26/11/2018,Scholar Allowances,Award Costs,Scholar,PIN036403,919.43,
DFID,CSC,26/11/2018,Scholar Allowances,Award Costs,Scholar,PIN036404,1108.21,
DFID,CSC,26/11/2018,Scholar Allowances,Award Costs,Scholar,PIN036404,744.14,
DFID,CSC,26/11/2018,Scholar Allowances,Award Costs,Scholar,PIN036405,3522.23,
DFID,CSC,27/11/2018,Scholar Allowances,Award Costs,Scholar,PIN036406,566,
DFID,CSC,27/11/2018,Scholar Allowances,Award Costs,Scholar,PIN036407,695.65,
DFID,CSC,27/11/2018,Scholar Allowances,Award Costs,Scholar,PIN036407,695.65,
DFID,CSC,30/11/2018,Tuition Fee,Award Costs,The University of Edinburgh,PIN036408,31850,Tuition fees for 5 scholars
DFID,CSC,30/11/2018,Tuition Fee,Award Costs,Cardiff University,PIN036409,5560,
DFID,CSC,30/11/2018,Tuition Fee,Award Costs,Cardiff University,PIN036410,5560,
DFID,CSC,30/11/2018,Tuition Fee,Award Costs,Cardiff University,PIN036411,5560,
DFID,CSC,30/11/2018,Tuition Fee,Award Costs,Cardiff University,PIN036412,5560,
DFID,CSC,30/11/2018,Scholar Allowances,Award Costs,Lancaster University,PIN036413,12420,
DFID,CSC,30/11/2018,Tuition Fee,Award Costs,Lancaster University,PIN036413,25860,Tuition fees for 5 scholars
DFID,CSC,30/11/2018,Tuition Fee,Award Costs,Cardiff University,PIN036414,5560,
DFID,CSC,30/11/2018,Tuition Fee,Award Costs,Sch Oriental & African Studies,PIN036415,13430.4,
DFID,CSC,30/11/2018,Tuition Fee,Award Costs,Sch Oriental & African Studies,PIN036416,15784,
DFID,CSC,30/11/2018,Tuition Fee,Award Costs,Sch Oriental & African Studies,PIN036417,13560,
DFID,CSC,30/11/2018,Tuition Fee,Award Costs,Sch Oriental & African Studies,PIN036418,15784,
DFID,CSC,30/11/2018,Tuition Fee,Award Costs,St Edmund Hall - Oxford,PIN036419,18000,
DFID,CSC,30/11/2018,Tuition Fee,Award Costs,Wolfson College,PIN036420,6141,
DFE,CSC,30/11/2018,Tuition Fee,Award Costs,St Catherine's College Oxford,PIN036421,23027,
DFID,CSC,30/11/2018,Award Support Costs,Award Costs,University of Aberdeen,PIN036422,5000,
DFID,CSC,30/11/2018,Tuition Fee,Award Costs,The University of Birmingham,PIN036423,16290,
DFID,CSC,30/11/2018,Award Support Costs,Award Costs,University of Oxford,PIN036424,10000,
DFID,CSC,30/11/2018,Tuition Fee,Award Costs,Nottingham Trent University,PIN036425,13250,
DFID,CSC,30/11/2018,Tuition Fee,Award Costs,University of Bradford,PIN036426,14784,
DFID,CSC,30/11/2018,Tuition Fee,Award Costs,The University of Edinburgh,PIN036427,12400,
DFE,CSC,30/11/2018,Scholar Stipend,Award Costs,University of Glasgow,PIN036428,13008,
DFID,CSC,30/11/2018,Tuition Fee,Award Costs,Nottingham Trent University,PIN036429,13900,
DFID,CSC,30/11/2018,Tuition Fee,Award Costs,Glasgow Caledonian University,PIN036430,12000,
DFID,CSC,30/11/2018,Tuition Fee,Award Costs,Brasenose College Oxford,PIN036431,25922,Tuition fees for 1 scholar
DFID,CSC,30/11/2018,Tuition Fee,Award Costs,Brasenose College Oxford,PIN036432,-3422,
DFID,CSC,30/11/2018,Tuition Fee,Award Costs,University of Reading,PIN036433,15088,
DFID,CSC,30/11/2018,Award Support Costs,Award Costs,University of Reading,PIN036434,1000,
DFID,CSC,30/11/2018,Tuition Fee,Award Costs,University of Reading,PIN036435,12856,
DFID,CSC,30/11/2018,Award Support Costs,Award Costs,University of Reading,PIN036436,1000,
DFID,CSC,30/11/2018,Tuition Fee,Award Costs,University of Reading,PIN036437,9408,
DFID,CSC,30/11/2018,Award Support Costs,Award Costs,University of Reading,PIN036438,800,
DFID,CSC,30/11/2018,Tuition Fee,Award Costs,University of Reading,PIN036439,12520,
DFID,CSC,30/11/2018,Tuition Fee,Award Costs,University of Reading,PIN036440,12856,
DFID,CSC,30/11/2018,Tuition Fee,Award Costs,University of Reading,PIN036442,12520,
DFID,CSC,30/11/2018,Tuition Fee,Award Costs,University of Reading,PIN036443,15008,
DFID,CSC,30/11/2018,Tuition Fee,Award Costs,University of Reading,PIN036444,15088,
DFID,CSC,30/11/2018,Award Support Costs,Award Costs,University of Reading,PIN036445,2250,
DFID,CSC,30/11/2018,Tuition Fee,Award Costs,University of Reading,PIN036446,12856,
DFID,CSC,30/11/2018,Award Support Costs,Award Costs,University of Reading,PIN036447,1000,
DFID,CSC,30/11/2018,Scholar Allowances,Award Costs,University of Wolverhampton,PIN036449,225,
DFID,CSC,30/11/2018,Scholar Travel,Award Costs,University of Wolverhampton,PIN036449,495.12,
DFID,CSC,30/11/2018,Scholar Travel,Award Costs,Queen Margaret University,PIN036451,1506.02,
DFID,CSC,30/11/2018,Visa Costs,Award Costs,Linacre College Oxford,PIN036454,75.2,
DFID,CSC,30/11/2018,Scholar Travel,Award Costs,Linacre College Oxford,PIN036454,0.4,
DFID,CSC,30/11/2018,Scholar Allowances,Award Costs,Linacre College Oxford,PIN036454,142.4,
DFID,CSC,30/11/2018,Scholar Travel,Award Costs,Linacre College Oxford,PIN036454,547.3,
DFID,CSC,30/11/2018,Scholar Allowances,Award Costs,University of Strathclyde,PIN036455,660,
DFID,CSC,30/11/2018,Scholar Allowances,Award Costs,University of Strathclyde,PIN036455,900,
DFID,CSC,30/11/2018,Tuition Fee,Award Costs,University of Southampton,PIN036457,112988.25,Tuition fees for 29 scholars
BEIS,CSC,30/11/2018,Scholar Allowances,Award Costs,Scholar,PIN036458,1000,
DFID,CSC,30/11/2018,Scholar Allowances,Award Costs,Scholar,PIN036459,550,
DFID,CSC,30/11/2018,Scholar Allowances,Award Costs,Scholar,PIN036460,600,
DFID,CSC,30/11/2018,Award Support Costs,Award Costs,University of Newcastle upon Tyne,PIN036465,3386.67,
BEIS,CSC,30/11/2018,Award Support Costs,Award Costs,The University of Leeds,PIN036466,2500,
DFID,CSC,30/11/2018,Scholar Travel,Award Costs,Edinburgh Napier University,PIN036467,1261,
DFID,CSC,30/11/2018,Visa Costs,Award Costs,Edinburgh Napier University,PIN036467,120,
DFID,CSC,30/11/2018,Scholar Allowances,Award Costs,Edinburgh Napier University,PIN036467,200,
DFID,CSC,30/11/2018,Scholar Allowances,Award Costs,Edinburgh Napier University,PIN036467,225,
DFID,CSC,30/11/2018,Tuition Fee,Award Costs,Edinburgh Napier University,PIN036467,12620,
DFID,CSC,30/11/2018,Scholar Allowances,Award Costs,University of Liverpool,PIN036468,300,
DFID,CSC,30/11/2018,Scholar Allowances,Award Costs,University of Liverpool,PIN036468,223.96,
DFID,CSC,30/11/2018,Visa Costs,Award Costs,University of Liverpool,PIN036468,165.24,
DFID,CSC,30/11/2018,Scholar Allowances,Award Costs,University of Liverpool,PIN036468,1175,
DFID,CSC,30/11/2018,Scholar Travel,Award Costs,University of Liverpool,PIN036468,2378.02,
DFID,CSC,30/11/2018,Scholar Travel,Award Costs,University of Liverpool,PIN036468,1749.9,
DFID,CSC,30/11/2018,Scholar Travel,Award Costs,Heriot Watt University,PIN036469,1390.14,
DFID,CSC,30/11/2018,Award Support Costs,Award Costs,University of Newcastle upon Tyne,PIN036470,1000,
DFID,CSC,30/11/2018,Award Support Costs,Award Costs,University of Newcastle upon Tyne,PIN036471,2500,
DFID,CSC,30/11/2018,Scholar Allowances,Award Costs,Bangor University,PIN036472,1350,
DFID,CSC,30/11/2018,Scholar Allowances,Award Costs,Bangor University,PIN036472,1200,
DFID,CSC,30/11/2018,Visa Costs,Award Costs,University of Chester,PIN036473,126.48,
DFID,CSC,30/11/2018,Scholar Allowances,Award Costs,University of Chester,PIN036473,970,
DFID,CSC,30/11/2018,Scholar Allowances,Award Costs,University of Chester,PIN036473,982,
DFID,CSC,30/11/2018,Scholar Allowances,Award Costs,University of Chester,PIN036473,1125,
DFID,CSC,30/11/2018,Scholar Travel,Award Costs,University of Chester,PIN036473,2590.2,
DFID,CSC,30/11/2018,Tuition Fee,Award Costs,University of Strathclyde,PIN036474,1250,
DFID,CSC,30/11/2018,Tuition Fee,Award Costs,Liverpool School of Tropical Medicine,PIN036475,14000,
DFID,CSC,30/11/2018,Award Support Costs,Award Costs,Liverpool School of Tropical Medicine,PIN036476,19000,
DFID,CSC,30/11/2018,Tuition Fee,Award Costs,University of Essex,PIN036477,11000,
DFID,CSC,30/11/2018,Tuition Fee,Award Costs,University of East Anglia,PIN036478,15800,
DFID,CSC,30/11/2018,Tuition Fee,Award Costs,Goldsmiths College,PIN036479,13824,
DFID,CSC,30/11/2018,Tuition Fee,Award Costs,University of Essex,PIN036480,11000,
DFID,CSC,30/11/2018,Tuition Fee,Award Costs,The University of Edinburgh,PIN036482,-4025,
DFID,CSC,30/11/2018,Tuition Fee,Award Costs,The University of Edinburgh,PIN036483,-4900,
DFID,CSC,30/11/2018,Tuition Fee,Award Costs,Staffordshire University,PIN036484,2115,
DFID,CSC,30/11/2018,Tuition Fee,Award Costs,University of Reading,PIN036485,12240,
DFID,CSC,30/11/2018,Award Support Costs,Award Costs,University of Reading,PIN036486,800,
DFID,CSC,30/11/2018,Tuition Fee,Award Costs,Loughborough University,PIN036487,16400,
DFID,CSC,30/11/2018,Tuition Fee,Award Costs,University of Strathclyde,PIN036488,12480,
DFID,CSC,30/11/2018,Tuition Fee,Award Costs,The University of Warwick,PIN036489,22500,
DFID,CSC,30/11/2018,Tuition Fee,Award Costs,University of Stirling,PIN036490,13650,
DFID,CSC,30/11/2018,Tuition Fee,Award Costs,London School of Economics,PIN036491,85212,Tuition fees for 4 scholars
DFID,CSC,30/11/2018,Tuition Fee,Award Costs,University of Glasgow,PIN036492,12200,
DFID,CSC,30/11/2018,Tuition Fee,Award Costs,Kings College London,PIN036493,14992,
DFID,CSC,30/11/2018,Tuition Fee,Award Costs,Kings College London,PIN036494,14992,
DFID,CSC,30/11/2018,Tuition Fee,Award Costs,University of South Wales,PIN036496,10400,
DFID,CSC,30/11/2018,Tuition Fee,Award Costs,University of Sheffield,PIN036497,17160,
DFID,CSC,30/11/2018,Tuition Fee,Award Costs,University College London Fees,PIN036498,17744,
DFID,CSC,30/11/2018,Tuition Fee,Award Costs,University College London Fees,PIN036499,18000,
DFID,CSC,30/11/2018,Tuition Fee,Award Costs,Harper Adams University,PIN036500,10120,
DFID,CSC,30/11/2018,Tuition Fee,Award Costs,University of East Anglia,PIN036501,14160,
DFID,CSC,30/11/2018,Award Support Costs,Award Costs,Kings College London,PIN036502,10000,
DFID,CSC,30/11/2018,Tuition Fee,Award Costs,University of Aberdeen,PIN036503,14400,
DFID,CSC,30/11/2018,Award Support Costs,Award Costs,University of Aberdeen,PIN036503,4200,
DFID,CSC,30/11/2018,Tuition Fee,Award Costs,Queens University Belfast,PIN036504,19760,
DFID,CSC,30/11/2018,Tuition Fee,Award Costs,University of Sussex,PIN036505,15500,
DFID,CSC,30/11/2018,Tuition Fee,Award Costs,University College London Fees,PIN036506,18000,
DFID,CSC,30/11/2018,Tuition Fee,Award Costs,Harper Adams University,PIN036507,10120,
DFID,CSC,30/11/2018,Tuition Fee,Award Costs,University College London Fees,PIN036508,17744,
DFID,CSC,30/11/2018,Award Support Costs,Award Costs,Liverpool School of Tropical Medicine,PIN036509,6000,
DFID,CSC,30/11/2018,Tuition Fee,Award Costs,Liverpool School of Tropical Medicine,PIN036509,14000,
DFID,CSC,30/11/2018,Tuition Fee,Award Costs,University College London Fees,PIN036510,18000,
DFID,CSC,30/11/2018,Award Support Costs,Award Costs,University of Newcastle upon Tyne,PIN036511,2500,
DFID,CSC,30/11/2018,Award Support Costs,Award Costs,Lond Sch Hygiene & Tropical Me,PIN036512,5000,
DFID,CSC,30/11/2018,Award Support Costs,Award Costs,University of Strathclyde,PIN036513,6176,
DFID,CSC,30/11/2018,Award Support Costs,Award Costs,University of Strathclyde,PIN036514,5000,
DFID,CSC,30/11/2018,Award Support Costs,Award Costs,University of Newcastle upon Tyne,PIN036515,1000,
DFID,CSC,30/11/2018,Award Support Costs,Award Costs,The University of Nottingham,PIN036516,5000,
DFID,CSC,30/11/2018,Award Support Costs,Award Costs,Glasgow Caledonian University,PIN036517,3000,
DFID,CSC,30/11/2018,Award Support Costs,Award Costs,University of Leicester,PIN036518,8400,
DFID,CSC,30/11/2018,Scholar Allowances,Award Costs,University of Sheffield,PIN036519,250,
DFID,CSC,30/11/2018,Scholar Travel,Award Costs,University of Sheffield,PIN036519,400.48,
DFID,CSC,30/11/2018,Scholar Travel,Award Costs,University of Stirling,PIN036520,900,
DFID,CSC,30/11/2018,Scholar Stipend,Award Costs,Scholar,PIN036524,536.34,
DFID,CSC,30/11/2018,Scholar Allowances,Award Costs,Scholar,PIN036524,275,
DFID,CSC,30/11/2018,Scholar Stipend,Award Costs,Scholar,PIN036530,2480.91,
DFID,CSC,30/11/2018,Scholar Allowances,Award Costs,Scholar,PIN036532,275,
DFID,CSC,30/11/2018,Scholar Stipend,Award Costs,Scholar,PIN036532,970.49,
DFID,CSC,30/11/2018,Scholar Allowances,Award Costs,Scholar,PIN036534,699,
DFID,CSC,30/11/2018,Scholar Allowances,Award Costs,Scholar,PIN036534,699,
DFID,CSC,30/11/2018,Secretariat Service Provision,Programme Costs,Disability Rights UK,PIN036535,3150,
DFID,CSC,30/11/2018,Scholar Engagement,Programme Costs,M.J. White Photography,PIN036536,1110,
DFID,CSC,02/11/2018,Bank Charges,Award Costs,MasterCard Prepaid Management Services Ltd,PIN036587,5.62,
DFID,CSC,02/11/2018,Scholar Travel,Award Costs,Scholar,PIN036587,75,
DFID,CSC,02/11/2018,Scholar Travel,Award Costs,Scholar,PIN036587,75,
DFID,CSC,02/11/2018,Scholar Travel,Award Costs,Scholar,PIN036587,75,
DFID,CSC,02/11/2018,Scholar Travel,Award Costs,Scholar,PIN036587,17,
DFID,CSC,02/11/2018,Scholar Travel,Award Costs,Scholar,PIN036587,64,
DFID,CSC,02/11/2018,Scholar Travel,Award Costs,Scholar,PIN036587,64,
DFID,CSC,02/11/2018,Scholar Travel,Award Costs,Scholar,PIN036587,64,
DFID,CSC,02/11/2018,Scholar Travel,Award Costs,Scholar,PIN036587,64,
DFID,CSC,02/11/2018,Scholar Travel,Award Costs,Scholar,PIN036587,64,
DFID,CSC,05/11/2018,Bank Charges,Award Costs,MasterCard Prepaid Management Services Ltd,PIN036588,6.56,
DFID,CSC,05/11/2018,Visa Costs,Award Costs,Scholar,PIN036588,212,
DFID,CSC,05/11/2018,Immigration Health Surcharge,Award Costs,Scholar,PIN036588,200,
DFID,CSC,05/11/2018,Visa Costs,Award Costs,Scholar,PIN036588,244,
DFID,CSC,06/11/2018,Bank Charges,Award Costs,MasterCard Prepaid Management Services Ltd,PIN036589,40.43,
DFID,CSC,06/11/2018,Scholar Stipend,Award Costs,Scholar,PIN036589,-907.89,
DFID,CSC,06/11/2018,Scholar Allowances,Award Costs,Scholar,PIN036589,421,
DFID,CSC,06/11/2018,Scholar Stipend,Award Costs,Scholar,PIN036589,1084,
DFID,CSC,06/11/2018,Scholar Allowances,Award Costs,Scholar,PIN036589,421,
DFID,CSC,06/11/2018,Scholar Stipend,Award Costs,Scholar,PIN036589,2116.69,
DFID,CSC,08/11/2018,Bank Charges,Award Costs,MasterCard Prepaid Management Services Ltd,PIN036591,74.86,
DFID,CSC,08/11/2018,Scholar Allowances,Award Costs,Scholar,PIN036591,421,
DFID,CSC,08/11/2018,Scholar Stipend,Award Costs,Scholar,PIN036591,2168,
DFID,CSC,08/11/2018,Scholar Allowances,Award Costs,Scholar,PIN036591,421,
DFID,CSC,08/11/2018,Scholar Stipend,Award Costs,Scholar,PIN036591,2009.86,
DFID,CSC,08/11/2018,Scholar Allowances,Award Costs,Scholar,PIN036591,421,
DFID,CSC,08/11/2018,Scholar Stipend,Award Costs,Scholar,PIN036591,2045.47,
DFID,CSC,12/11/2018,Bank Charges,Award Costs,MasterCard Prepaid Management Services Ltd,PIN036593,23.24,
DFID,CSC,12/11/2018,Scholar Allowances,Award Costs,Scholar,PIN036593,421,
DFID,CSC,12/11/2018,Scholar Stipend,Award Costs,Scholar,PIN036593,1903.03,
DFID,CSC,13/11/2018,Bank Charges,Award Costs,MasterCard Prepaid Management Services Ltd,PIN036594,41.46,
DFID,CSC,13/11/2018,Scholar Travel,Award Costs,Scholar,PIN036594,106,
DFID,CSC,13/11/2018,Scholar Travel,Award Costs,Scholar,PIN036594,91,
DFID,CSC,13/11/2018,Scholar Travel,Award Costs,Scholar,PIN036594,91,
DFID,CSC,13/11/2018,Scholar Travel,Award Costs,Scholar,PIN036594,91,
DFID,CSC,13/11/2018,Scholar Travel,Award Costs,Scholar,PIN036594,91,
DFID,CSC,13/11/2018,Scholar Travel,Award Costs,Scholar,PIN036594,91,
DFID,CSC,13/11/2018,Scholar Travel,Award Costs,Scholar,PIN036594,91,
DFID,CSC,13/11/2018,Scholar Travel,Award Costs,Scholar,PIN036594,75,
DFID,CSC,13/11/2018,Scholar Travel,Award Costs,Scholar,PIN036594,75,
DFID,CSC,13/11/2018,Scholar Travel,Award Costs,Scholar,PIN036594,75,
DFID,CSC,13/11/2018,Scholar Travel,Award Costs,Scholar,PIN036594,75,
DFID,CSC,13/11/2018,Scholar Travel,Award Costs,Scholar,PIN036594,75,
DFID,CSC,13/11/2018,Scholar Travel,Award Costs,Scholar,PIN036594,106,
DFID,CSC,13/11/2018,Scholar Travel,Award Costs,Scholar,PIN036594,106,
DFID,CSC,13/11/2018,Scholar Travel,Award Costs,Scholar,PIN036594,52,
DFID,CSC,13/11/2018,Scholar Travel,Award Costs,Scholar,PIN036594,109,
DFID,CSC,13/11/2018,Scholar Travel,Award Costs,Scholar,PIN036594,109,
DFID,CSC,13/11/2018,Scholar Travel,Award Costs,Scholar,PIN036594,109,
DFID,CSC,13/11/2018,Scholar Travel,Award Costs,Scholar,PIN036594,109,
DFID,CSC,13/11/2018,Scholar Travel,Award Costs,Scholar,PIN036594,109,
DFID,CSC,13/11/2018,Scholar Travel,Award Costs,Scholar,PIN036594,109,
DFID,CSC,13/11/2018,Scholar Travel,Award Costs,Scholar,PIN036594,109,
DFID,CSC,13/11/2018,Scholar Travel,Award Costs,Scholar,PIN036594,109,
DFID,CSC,13/11/2018,Scholar Travel,Award Costs,Scholar,PIN036594,113,
DFID,CSC,13/11/2018,Scholar Travel,Award Costs,Scholar,PIN036594,113,
DFID,CSC,13/11/2018,Scholar Travel,Award Costs,Scholar,PIN036594,113,
DFID,CSC,13/11/2018,Scholar Travel,Award Costs,Scholar,PIN036594,113,
DFID,CSC,13/11/2018,Scholar Travel,Award Costs,Scholar,PIN036594,113,
DFID,CSC,13/11/2018,Scholar Travel,Award Costs,Scholar,PIN036594,113,
DFID,CSC,13/11/2018,Scholar Travel,Award Costs,Scholar,PIN036594,113,
DFID,CSC,13/11/2018,Scholar Travel,Award Costs,Scholar,PIN036594,113,
DFID,CSC,13/11/2018,Scholar Travel,Award Costs,Scholar,PIN036594,68,
DFID,CSC,13/11/2018,Scholar Travel,Award Costs,Scholar,PIN036594,68,
DFID,CSC,13/11/2018,Scholar Travel,Award Costs,Scholar,PIN036594,75,
DFID,CSC,13/11/2018,Scholar Travel,Award Costs,Scholar,PIN036594,75,
DFID,CSC,13/11/2018,Scholar Travel,Award Costs,Scholar,PIN036594,75,
DFID,CSC,13/11/2018,Scholar Travel,Award Costs,Scholar,PIN036594,75,
DFID,CSC,13/11/2018,Scholar Travel,Award Costs,Scholar,PIN036594,17,
DFID,CSC,13/11/2018,Scholar Travel,Award Costs,Scholar,PIN036594,17,
DFID,CSC,13/11/2018,Scholar Travel,Award Costs,Scholar,PIN036594,50,
DFID,CSC,13/11/2018,Scholar Travel,Award Costs,Scholar,PIN036594,50,
DFID,CSC,13/11/2018,Scholar Travel,Award Costs,Scholar,PIN036594,50,
DFID,CSC,13/11/2018,Scholar Travel,Award Costs,Scholar,PIN036594,75,
DFID,CSC,13/11/2018,Scholar Travel,Award Costs,Scholar,PIN036594,64,
DFID,CSC,13/11/2018,Scholar Travel,Award Costs,Scholar,PIN036594,64,
DFID,CSC,13/11/2018,Scholar Travel,Award Costs,Scholar,PIN036594,64,
DFID,CSC,13/11/2018,Scholar Travel,Award Costs,Scholar,PIN036594,64,
DFID,CSC,13/11/2018,Scholar Travel,Award Costs,Scholar,PIN036594,64,
DFID,CSC,13/11/2018,Scholar Travel,Award Costs,Scholar,PIN036594,64,
DFID,CSC,15/11/2018,Bank Charges,Award Costs,MasterCard Prepaid Management Services Ltd,PIN036595,41.14,
DFID,CSC,15/11/2018,Scholar Allowances,Award Costs,Scholar,PIN036595,421,
DFID,CSC,15/11/2018,Scholar Stipend,Award Costs,Scholar,PIN036595,1796.2,
DFID,CSC,15/11/2018,Scholar Allowances,Award Costs,Scholar,PIN036595,421,
DFID,CSC,15/11/2018,Scholar Stipend,Award Costs,Scholar,PIN036595,1475.71,
DFID,CSC,20/11/2018,Bank Charges,Award Costs,MasterCard Prepaid Management Services Ltd,PIN036596,13.52,
DFID,CSC,20/11/2018,Scholar Travel,Award Costs,Scholar,PIN036596,70,
DFID,CSC,20/11/2018,Scholar Travel,Award Costs,Scholar,PIN036596,109,
DFID,CSC,20/11/2018,Scholar Travel,Award Costs,Scholar,PIN036596,109,
DFID,CSC,20/11/2018,Scholar Travel,Award Costs,Scholar,PIN036596,109,
DFID,CSC,20/11/2018,Scholar Travel,Award Costs,Scholar,PIN036596,17,
DFID,CSC,20/11/2018,Scholar Travel,Award Costs,Scholar,PIN036596,50,
DFID,CSC,20/11/2018,Immigration Health Surcharge,Award Costs,Scholar,PIN036596,244,
DFID,CSC,20/11/2018,Visa Costs,Award Costs,Scholar,PIN036596,200,
DFID,CSC,20/11/2018,Immigration Health Surcharge,Award Costs,Scholar,PIN036596,200,
DFID,CSC,20/11/2018,Visa Costs,Award Costs,Scholar,PIN036596,244,
DFID,CSC,21/11/2018,Bank Charges,Award Costs,MasterCard Prepaid Management Services Ltd,PIN036597,34.22,
DFID,CSC,21/11/2018,Scholar Allowances,Award Costs,Scholar,PIN036597,421,
DFID,CSC,21/11/2018,Scholar Stipend,Award Costs,Scholar,PIN036597,1546.93,
DFID,CSC,21/11/2018,Scholar Allowances,Award Costs,Scholar,PIN036597,421,
DFID,CSC,21/11/2018,Scholar Stipend,Award Costs,Scholar,PIN036597,1032.69,
DFID,CSC,23/11/2018,Bank Charges,Award Costs,MasterCard Prepaid Management Services Ltd,PIN036598,19.68,
DFID,CSC,23/11/2018,Scholar Allowances,Award Costs,Scholar,PIN036598,421,
DFID,CSC,23/11/2018,Scholar Stipend,Award Costs,Scholar,PIN036598,1546.93,
DFID,CSC,26/11/2018,Bank Charges,Award Costs,MasterCard Prepaid Management Services Ltd,PIN036599,24.69,
DFID,CSC,26/11/2018,Scholar Travel,Award Costs,Scholar,PIN036599,106,
DFID,CSC,26/11/2018,Scholar Travel,Award Costs,Scholar,PIN036599,75,
DFID,CSC,26/11/2018,Scholar Travel,Award Costs,Scholar,PIN036599,75,
DFID,CSC,26/11/2018,Scholar Travel,Award Costs,Scholar,PIN036599,52,
DFID,CSC,26/11/2018,Scholar Travel,Award Costs,Scholar,PIN036599,113,
DFID,CSC,26/11/2018,Scholar Travel,Award Costs,Scholar,PIN036599,68,
DFID,CSC,26/11/2018,Scholar Travel,Award Costs,Scholar,PIN036599,75,
DFID,CSC,26/11/2018,Scholar Travel,Award Costs,Scholar,PIN036599,17,
DFID,CSC,26/11/2018,Scholar Travel,Award Costs,Scholar,PIN036599,17,
DFID,CSC,26/11/2018,Scholar Travel,Award Costs,Scholar,PIN036599,17,
DFID,CSC,26/11/2018,Scholar Travel,Award Costs,Scholar,PIN036599,64,
DFID,CSC,26/11/2018,Scholar Allowances,Award Costs,Scholar,PIN036599,421,
DFID,CSC,26/11/2018,Scholar Stipend,Award Costs,Scholar,PIN036599,1368.88,
DFID,CSC,27/11/2018,Bank Charges,Award Costs,MasterCard Prepaid Management Services Ltd,PIN036600,39.26,
DFID,CSC,27/11/2018,Scholar Stipend,Award Costs,Scholar,PIN036600,-1433.29,
DFID,CSC,27/11/2018,Scholar Stipend,Award Costs,Scholar,PIN036600,-421,
DFID,CSC,27/11/2018,Scholar Allowances,Award Costs,Scholar,PIN036600,421,
DFID,CSC,27/11/2018,Scholar Stipend,Award Costs,Scholar,PIN036600,1679.6,
DFID,CSC,27/11/2018,Scholar Allowances,Award Costs,Scholar,PIN036600,421,
DFID,CSC,27/11/2018,Scholar Stipend,Award Costs,Scholar,PIN036600,1404.49,
DFID,CSC,01/11/2018,Scholar Stipend,Award Costs,Scholar,PRF000096,-630,
DFID,CSC,01/11/2018,Scholar Stipend,Award Costs,Scholar,PRF000097,-1569,
DFID,CSC,02/11/2018,Scholar Stipend,Award Costs,Scholar,PRF000098,-3252,
DFID,CSC,06/11/2018,Scholar Stipend,Award Costs,Scholar,PRF000099,-1626,
BEIS,CSC,08/11/2018,Scholar Stipend,Award Costs,Scholar,PRF000100,-598.48,
BEIS,CSC,16/11/2018,Scholar Stipend,Award Costs,Scholar,PRF000101,-4968,
